bitfinex-derivatives/quotes_SOLF0:USTF0_20241211
["timestamp","ask_amount","ask_price","bid_price","bid_amount"]
[1733921591746,2.2214,224.98,224.97,24.74420249]
[1733921592006,4.3814,224.98,224.97,50.62799044]
[1733921592119,4.3814,224.98,224.97,44.44193982]
[1733921595789,4.3814,224.98,224.97,11.36430828]
[1733921596590,4.3814,224.98,224.97,50.63025029]
[1733921596782,4.3814,224.98,224.97,44.4426996]
[1733921597595,4.3814,224.98,224.97,50.63026481]
[1733921597989,4.3814,224.98,224.97,44.4426996]
[1733921600493,4.3814,224.98,224.97,11.36452863]
[1733921601217,4.3814,224.98,224.97,5.17675759]
[1733921601520,2.16,224.98,224.94,24.74592291]
[1733921601774,6.67485735,224.97,224.95,5.17696092]
[1733921601890,6.67485735,224.97,224.93,6.18777104]
[1733921602592,6.67485735,224.97,224.92,6.18777104]
[1733921602803,6.67485735,224.97,224.93,5.17604156]
[1733921603097,6.67485735,224.97,224.92,6.18777104]
[1733921603285,6.67485735,224.97,224.93,11.36383699]
[1733921603486,2.16,224.98,224.94,5.17603422]
[1733921603697,2.16,224.98,224.93,24.74592291]
[1733921603891,2.16,224.98,224.94,5.17551513]
[1733921604092,2.16,225.01,224.96,12.86262839]
[1733921604298,6.67485735,225.04,224.98,6.18777104]
[1733921604489,2.16,225.03,224.99,11.36328913]
[1733921604710,2.221,225.02,225.0,5.17508155]
[1733921604996,2.16,225.03,224.99,24.74592291]
[1733921605193,2.16,225.03,225.0,11.36272845]
[1733921605402,2.16,225.03,225.0,6.18777104]
[1733921605607,2.16,225.03,224.99,24.74592291]
[1733921605794,2.16,225.03,225.0,5.17574573]
[1733921606096,2.16,225.03,224.99,24.74592291]
[1733921606296,2.16,225.03,225.0,5.1757181]
[1733921606498,2.16,225.03,224.99,6.18777104]
[1733921606697,2.2213,224.99,224.98,6.18777104]
[1733921606894,2.2213,224.99,224.98,5.17612655]
[1733921607795,2.2213,224.99,224.98,11.36389759]
[1733921608002,6.67485735,224.99,224.93,18.55815187]
[1733921608198,2.16,224.98,224.91,18.55815187]
[1733921608533,2.2219,224.94,224.92,23.73520736]
[1733921608713,2.2219,224.94,224.93,5.17705549]
[1733921610999,2.2219,224.94,224.93,44.26825525]
[1733921611312,2.2219,224.94,224.93,5.17705549]
[1733921611645,8.83485735,224.95,224.91,18.55815187]
[1733921611910,8.83485735,224.95,224.89,18.55815187]
[1733921612098,6.67485735,224.93,224.9,5.13288888]
[1733921612303,6.67485735,224.93,224.89,18.55815187]
[1733921612502,6.67485735,224.93,224.88,18.55815187]
[1733921612700,6.67485735,224.93,224.89,5.13063227]
[1733921612997,6.67485735,224.93,224.88,18.55815187]
[1733921613198,6.67485735,224.93,224.89,5.13063081]
[1733921613402,6.67485735,224.93,224.87,18.55815187]
[1733921613703,2.2223,224.89,224.88,5.13040741]
[1733921614006,2.16,224.89,224.86,18.55815187]
[1733921614204,2.16,224.89,224.87,44.20131263]
[1733921614398,4.3823,224.89,224.88,5.12864268]
[1733921615098,4.3823,224.89,224.88,25.63685185]
[1733921615302,4.3823,224.89,224.88,5.12864268]
[1733921615498,2.2224,224.88,224.85,18.55815187]
[1733921615698,2.16,224.89,224.85,18.55815187]
[1733921615699,2.16,224.89,224.86,5.1251449]
[1733921616005,2.16,224.89,224.85,18.55815187]
[1733921616208,2.16,224.89,224.86,5.1252662]
[1733921616406,2.16,224.89,224.84,18.55815187]
[1733921616601,2.16,224.89,224.85,5.12510859]
[1733921616800,2.2227,224.85,224.84,18.55815187]
[1733921617103,2.2227,224.85,224.84,44.17480258]
[1733921617503,2.2227,224.85,224.84,5.12333014]
[1733921619502,8.83485735,224.89,224.82,25.23300922]
[1733921619807,6.67485735,224.87,224.83,5.11855511]
[1733921620008,6.67485735,224.87,224.82,18.55815187]
[1733921620209,2.2228,224.84,224.83,5.11856952]
[1733921622005,2.223,224.82,224.81,18.55815187]
[1733921622203,2.223,224.82,224.81,5.11664817]
[1733921623012,2.223,224.82,224.8,6.67485735]
[1733921623208,2.223,224.82,224.81,5.11576888]
[1733921624011,2.16,224.84,224.81,5.11576888]
[1733921624439,2.16,224.84,224.8,25.23300922]
[1733921624534,2.16,224.84,224.81,5.11501871]
[1733921624713,2.223,224.82,224.8,6.67485735]
[1733921625212,2.16,224.84,224.8,6.67485735]
[1733921626108,2.223,224.82,224.8,12.13143079]
[1733921626305,6.67485735,224.81,224.73,39.01775575]
[1733921626516,2.16,224.84,224.73,6.67485735]
[1733921626517,6.67485735,224.79,224.73,6.67485735]
[1733921626714,2.16,224.78,224.73,6.67485735]
[1733921627726,2.16,224.78,224.75,6.67485735]
[1733921628116,2.16,224.78,224.77,6.67485735]
[1733921629226,2.16,224.78,224.74,5.27449881]
[1733921629422,2.16,224.78,224.76,6.67485735]
[1733921630618,4.3834,224.78,224.76,6.67485735]
[1733921631000,2.16,224.78,224.76,6.67485735]
[1733921631247,2.16,224.82,224.76,6.67485735]
[1733921631429,2.16,224.82,224.79,6.67485735]
[1733921631618,4.383,224.82,224.79,6.67485735]
[1733921632117,2.223,224.82,224.79,6.67485735]
[1733921632619,5.45987158,224.97,224.81,6.67485735]
[1733921632917,6.67485735,224.91,224.84,6.67485735]
[1733921633130,2.2225,224.88,224.84,6.67485735]
[1733921633724,2.16,224.89,224.86,6.67485735]
[1733921633923,2.16,224.91,224.86,6.67485735]
[1733921635419,2.2224,224.88,224.86,6.67485735]
[1733921638438,2.2222,224.9,224.86,6.67485735]
[1733921638631,2.16,224.91,224.86,6.67485735]
[1733921639530,2.2226,224.86,224.84,6.67485735]
[1733921639728,2.2226,224.86,224.81,49.32269563]
[1733921639729,2.16,224.86,224.81,18.55815187]
[1733921639946,2.16,224.86,224.78,22.72595187]
[1733921640128,2.2228,224.84,224.79,11.78475953]
[1733921640326,6.67485735,224.85,224.79,6.67485735]
[1733921640999,2.2231,224.8,224.79,6.67485735]
[1733921641229,2.16,224.86,224.79,6.67485735]
[1733921641440,2.223,224.82,224.78,4.1678]
[1733921641635,2.16,224.86,224.78,4.1678]
[1733921641942,2.16,224.86,224.79,11.79005172]
[1733921642138,2.2229,224.83,224.79,6.67485735]
[1733921642342,2.2229,224.83,224.8,5.11518871]
[1733921642527,2.2229,224.83,224.79,25.23300922]
[1733921642737,2.2229,224.83,224.8,5.1174847]
[1733921642941,2.2229,224.83,224.79,25.23300922]
[1733921643130,2.2229,224.83,224.8,5.11750667]
[1733921643332,2.2229,224.83,224.79,6.67485735]
[1733921643536,2.2229,224.83,224.8,5.11751196]
[1733921643739,2.2229,224.83,224.81,11.79316649]
[1733921643932,2.2229,224.83,224.81,6.67485735]
[1733921645441,6.67485735,224.87,224.82,5.11957563]
[1733921645442,2.2225,224.87,224.82,5.11957563]
[1733921645640,2.2225,224.87,224.84,6.67485735]
[1733921646376,2.2225,224.87,224.85,5.12075715]
[1733921646540,2.2225,224.87,224.84,25.23300922]
[1733921646732,2.2226,224.86,224.85,5.12226919]
[1733921648139,2.16,224.89,224.85,44.17116764]
[1733921648363,6.67485735,224.93,224.87,6.67485735]
[1733921648550,2.16,224.91,224.87,6.67485735]
[1733921648738,4.4424,225.01,224.89,6.67485735]
[1733921648949,6.67485735,224.95,224.89,6.67485735]
[1733921649138,2.16,224.98,224.89,6.67485735]
[1733921649357,2.2219,224.93,224.9,5.12231952]
[1733921649826,1.3925,224.99,224.91,11.79658837]
[1733921650109,2.2217,224.95,224.91,6.67485735]
[1733921650276,2.2217,224.95,224.92,5.12152087]
[1733921650440,2.2218,224.94,224.91,25.23300922]
[1733921650648,2.16,224.96,224.92,5.11962029]
[1733921650854,2.16,224.96,224.93,5.11959009]
[1733921651137,2.2218,224.95,224.92,18.55815187]
[1733921651345,2.2218,224.95,224.93,5.11946163]
[1733921651542,2.2218,224.95,224.91,25.23300922]
[1733921651740,2.2218,224.95,224.92,5.11718451]
[1733921651939,2.2218,224.95,224.91,25.23300922]
[1733921652135,2.2218,224.95,224.92,5.11729805]
[1733921652342,2.2218,224.95,224.91,25.23300922]
[1733921652642,2.2218,224.95,224.91,6.67485735]
[1733921653544,2.2218,224.94,224.91,6.67485735]
[1733921655650,2.2219,224.93,224.91,6.67485735]
[1733921656304,2.2222,224.9,224.89,23.93451947]
[1733921656448,6.67485735,224.93,224.89,5.11125759]
[1733921656648,2.16,224.92,224.86,10.63975735]
[1733921657250,2.16,224.92,224.84,18.55815187]
[1733921657553,2.16,224.92,224.86,6.67485735]
[1733921657754,2.16,224.92,224.86,11.91466441]
[1733921658247,2.2223,224.89,224.86,11.91466441]
[1733921660450,2.222,224.92,224.88,6.67485735]
[1733921660661,2.222,224.92,224.91,6.67485735]
[1733921661046,2.222,224.92,224.89,6.67485735]
[1733921661556,2.222,224.92,224.87,2.2225]
[1733921661748,2.222,224.92,224.89,6.67485735]
[1733921662760,2.2221,224.91,224.89,6.67485735]
[1733921662943,2.2221,224.91,224.87,8.89735735]
[1733921664061,2.2224,224.88,224.87,6.67485735]
[1733921664250,6.67485735,224.93,224.87,6.67485735]
[1733921664656,2.2222,224.9,224.87,6.67485735]
[1733921665966,2.2222,224.9,224.88,5.11142217]
[1733921666153,2.2222,224.9,224.87,6.67485735]
[1733921666460,2.2222,224.9,224.88,5.11142215]
[1733921666657,2.2222,224.9,224.87,25.23300922]
[1733921666859,2.2222,224.9,224.88,5.11310737]
[1733921667163,2.2222,224.9,224.87,25.23300922]
[1733921667401,2.2222,224.9,224.88,5.11310464]
[1733921667558,2.2222,224.9,224.87,25.23300922]
[1733921667850,2.2222,224.9,224.88,5.11436133]
[1733921668055,2.2222,224.9,224.88,6.17501318]
[1733921669054,2.16,224.94,224.88,6.17501318]
[1733921669302,2.2222,224.9,224.88,6.17501318]
[1733921671754,2.16,224.94,224.89,5.11443781]
[1733921671963,2.2221,224.91,224.88,24.73316505]
[1733921672254,2.2221,224.91,224.89,5.11442451]
[1733921672476,2.2219,224.93,224.89,8.89715735]
[1733921672670,5.41059403,225.02,224.91,6.67485735]
[1733921672671,2.16,224.94,224.91,6.67485735]
[1733921673659,4.3818,224.94,224.91,6.67485735]
[1733921674457,2.16,224.96,224.93,6.67485735]
[1733921674675,1.3884,225.06,224.95,6.67485735]
[1733921674870,2.16,225.02,224.95,6.67485735]
[1733921675067,2.2211,225.01,224.97,6.67485735]
[1733921675367,2.16,225.01,224.97,6.67485735]
[1733921676669,2.16,225.01,224.98,4.23796343]
[1733921676871,2.221,225.02,224.99,4.23796343]
[1733921677066,4.381,225.02,225.0,4.23764615]
[1733921677271,4.381,225.02,224.97,6.67485735]
[1733921677571,4.381,225.02,224.98,4.23718707]
[1733921677771,4.381,225.02,224.99,4.23718707]
[1733921677982,4.381,225.02,225.0,4.23717412]
[1733921678166,4.381,225.02,224.97,6.67485735]
[1733921678479,4.381,225.02,224.98,4.23642154]
[1733921678769,2.16,225.02,224.99,4.23642154]
[1733921679096,2.16,225.02,224.97,8.89635735]
[1733921679307,2.16,225.02,224.97,15.07137053]
[1733921679402,2.16,225.03,224.99,6.67485735]
[1733921679567,2.16,225.03,225.01,6.67485735]
[1733921679865,6.67485735,225.08,225.02,4.23620173]
[1733921680068,4.3805,225.07,225.03,4.23620173]
[1733921680267,4.3805,225.07,225.04,4.23620173]
[1733921680468,4.3805,225.07,225.01,15.07097053]
[1733921680671,4.3805,225.07,225.02,4.23251772]
[1733921680976,2.16,225.06,225.03,4.23251772]
[1733921681269,2.16,225.06,225.01,8.89595735]
[1733921681270,8.83485735,225.06,225.01,6.67485735]
[1733921681469,8.83485735,225.06,225.02,4.23074082]
[1733921681770,8.83485735,225.06,224.99,31.4080224]
[1733921682080,8.83485735,225.06,225.0,9.33933368]
[1733921682344,8.83485735,225.06,225.01,4.23074814]
[1733921682503,8.83485735,225.06,225.02,4.23074814]
[1733921682667,2.2208,225.04,224.99,12.84987053]
[1733921682871,2.2208,225.04,225.0,9.33662407]
[1733921683073,2.2208,225.04,225.01,4.22919839]
[1733921683274,4.3806,225.06,225.02,10.90405574]
[1733921683471,4.3806,225.06,225.02,6.67485735]
[1733921685785,4.3806,225.06,225.03,4.22617367]
[1733921685978,4.3806,225.06,225.02,6.67485735]
[1733921686381,2.2206,225.06,225.02,6.67485735]
[1733921686585,4.3806,225.06,225.03,4.22607633]
[1733921686773,4.3806,225.06,225.02,6.67485735]
[1733921686973,4.3806,225.06,225.03,4.22609687]
[1733921687272,2.16,225.06,225.04,10.90100575]
[1733921687470,2.16,225.06,225.04,6.67485735]
[1733921688385,2.2201,225.11,225.04,6.67485735]
[1733921688705,8.83485735,225.1,225.04,6.67485735]
[1733921689286,8.83485735,225.1,225.05,4.22716251]
[1733921689475,8.83485735,225.1,225.04,6.67485735]
[1733921689686,6.67485735,225.08,225.0,6.17501318]
[1733921689870,6.67485735,225.08,225.02,6.67485735]
[1733921690078,6.67485735,225.06,224.99,8.06575735]
[1733921690275,2.16,225.05,225.0,4.22717853]
[1733921690473,2.16,225.05,225.01,4.22717853]
[1733921690474,2.16,225.04,225.01,4.22717853]
[1733921690681,2.2211,225.01,224.99,8.06575735]
[1733921690979,2.2211,225.01,225.0,4.22732016]
[1733921692277,2.221,225.02,225.0,4.22804014]
[1733921692378,2.221,225.02,224.99,6.67485735]
[1733921692580,2.16,225.04,225.0,4.22812981]
[1733921692781,2.16,225.04,224.99,6.67485735]
[1733921693780,2.2211,225.02,225.0,4.22855552]
[1733921693983,6.67485735,225.01,224.95,12.84987053]
[1733921694282,6.67485735,225.01,224.85,74.28120916]
[1733921694283,2.2215,224.97,224.96,4.22854807]
[1733921694479,8.89635735,224.97,224.96,4.22854807]
[1733921694677,6.67485735,224.97,224.9,12.84987053]
[1733921694880,2.222,224.92,224.91,4.2296639]
[1733921695655,2.2222,224.9,224.87,1.4042]
[1733921695801,2.2222,224.9,224.88,4.2297541]
[1733921695986,2.2222,224.9,224.86,11.91466441]
[1733921696185,2.2222,224.9,224.87,4.22963221]
[1733921696379,2.2222,224.9,224.88,4.22963221]
[1733921696681,2.2222,224.9,224.89,4.2289272]
[1733921697283,2.2221,224.92,224.89,4.2289272]
[1733921697585,2.16,224.93,224.88,6.67485735]
[1733921697782,2.16,224.93,224.89,4.22851554]
[1733921698079,2.16,224.93,224.88,6.67485735]
[1733921698293,2.16,224.93,224.89,4.22802449]
[1733921698501,2.16,224.93,224.88,6.67485735]
[1733921698703,2.2221,224.91,224.89,4.22802446]
[1733921698914,2.2221,224.91,224.88,6.67485735]
[1733921699228,2.2221,224.91,224.89,4.22802588]
[1733921699379,2.2221,224.91,224.88,6.67485735]
[1733921699578,2.2222,224.9,224.89,4.22767056]
[1733921701305,2.2222,224.9,224.89,4.22693195]
[1733921702487,2.2222,224.9,224.86,11.91466441]
[1733921702683,2.2222,224.9,224.87,4.22686344]
[1733921702889,2.2222,224.9,224.88,4.22686344]
[1733921703089,8.83485735,224.93,224.86,11.91466441]
[1733921703287,2.2223,224.89,224.87,4.22675994]
[1733921703490,2.2223,224.89,224.88,4.22675994]
[1733921704096,2.2221,224.91,224.88,6.67485735]
[1733921704572,2.2221,224.91,224.89,4.22674019]
[1733921704833,2.2221,224.91,224.88,6.67485735]
[1733921704987,2.2221,224.91,224.89,4.22669886]
[1733921705304,2.2221,224.91,224.9,4.22669886]
[1733921705906,8.89695735,224.91,224.9,4.22669886]
[1733921706142,2.2223,224.89,224.86,5.23980706]
[1733921706287,2.2223,224.89,224.87,4.22673087]
[1733921706594,2.2223,224.89,224.86,5.23980706]
[1733921706797,2.2224,224.88,224.87,4.2267679]
[1733921706997,8.83485735,224.93,224.87,4.2267679]
[1733921707206,2.16,224.93,224.87,6.67485735]
[1733921707391,2.16,224.93,224.88,4.22632444]
[1733921707630,2.16,224.93,224.87,6.67485735]
[1733921708002,2.16,224.93,224.88,4.22599758]
[1733921708189,2.16,224.93,224.89,4.22599758]
[1733921708501,2.16,224.93,224.87,6.67485735]
[1733921708690,2.16,224.93,224.89,6.67485735]
[1733921708890,2.16,224.93,224.9,4.22600466]
[1733921709094,2.16,224.93,224.89,6.67485735]
[1733921709291,2.16,224.93,224.9,4.22604879]
[1733921709596,2.2221,224.91,224.89,6.67485735]
[1733921709897,2.2221,224.91,224.9,4.2260466]
[1733921710397,2.222,224.92,224.9,4.2260466]
[1733921710635,2.222,224.92,224.89,6.67485735]
[1733921710854,6.70992491,225.01,224.91,10.90075366]
[1733921710997,6.67485735,224.98,224.92,4.22589631]
[1733921711191,6.67485735,224.98,224.93,4.22589631]
[1733921711394,2.16,225.0,224.91,6.67485735]
[1733921711588,2.2216,224.96,224.92,4.2262067]
[1733921711792,6.67485735,225.0,224.93,10.90106405]
[1733921712004,2.16,224.99,224.95,6.67485735]
[1733921712201,4.3813,224.99,224.96,4.2262067]
[1733921712394,4.3813,224.99,224.95,6.67485735]
[1733921712594,2.2213,224.99,224.96,4.226031]
[1733921712800,2.2213,224.99,224.97,4.226031]
[1733921712996,2.2212,225.0,224.97,6.67485735]
[1733921713313,5.8729,225.16,224.99,6.67485735]
[1733921713314,2.16,225.03,224.99,6.67485735]
[1733921713502,2.16,225.06,225.0,4.22619553]
[1733921713704,2.16,225.06,225.01,4.22619553]
[1733921713960,2.16,225.06,225.0,6.67485735]
[1733921714105,2.16,225.06,225.01,4.22603692]
[1733921714296,2.16,225.06,225.0,6.67485735]
[1733921714493,2.16,225.06,225.01,4.22596192]
[1733921714697,2.16,225.06,225.0,6.67485735]
[1733921714698,2.2208,225.04,225.0,6.67485735]
[1733921714897,2.2208,225.04,225.01,4.22597019]
[1733921715098,2.16,225.06,225.0,6.67485735]
[1733921715299,2.2209,225.03,225.01,4.22600905]
[1733921715604,2.2209,225.03,225.0,6.67485735]
[1733921715802,2.221,225.02,224.98,1.3309]
[1733921716000,6.67485735,225.05,224.99,4.22600727]
[1733921716204,6.67485735,225.03,225.0,4.22600727]
[1733921716406,2.2213,224.99,224.98,1.3309]
[1733921716604,2.2213,224.99,224.98,5.55722245]
[1733921717570,2.2213,224.99,224.98,1.3309]
[1733921717819,2.2213,224.99,224.98,5.55755723]
[1733921718007,2.2213,224.99,224.98,4.22665723]
[1733921718912,2.2212,225.0,224.98,4.22665723]
[1733921719107,2.2212,225.0,224.99,4.22665723]
[1733921720706,4.3811,225.02,224.99,4.22665723]
[1733921720905,2.16,225.02,224.97,6.67485735]
[1733921721207,2.16,225.02,224.98,4.22665798]
[1733921721416,2.16,225.02,224.99,4.22665798]
[1733921721610,2.2211,225.01,224.97,6.67485735]
[1733921721807,2.2211,225.01,224.98,4.22654924]
[1733921722006,2.2211,225.01,224.99,4.22654924]
[1733921722210,2.2211,225.01,224.97,6.67485735]
[1733921722404,2.2212,225.0,224.98,4.2264851]
[1733921722605,2.2212,225.0,224.99,4.2264851]
[1733921723810,2.2212,225.0,224.99,4.22641645]
[1733921724004,4.3811,225.02,224.99,4.22641645]
[1733921724202,4.3811,225.02,224.97,6.67485735]
[1733921724414,4.3811,225.02,224.98,4.22632051]
[1733921724607,2.2211,225.01,224.99,4.22632051]
[1733921724911,2.16,225.02,225.0,4.22636424]
[1733921725211,2.16,225.02,225.01,4.22636424]
[1733921725709,2.221,225.03,225.01,4.22636424]
[1733921725908,2.221,225.03,224.99,6.67485735]
[1733921726110,2.221,225.03,225.0,4.22624102]
[1733921726313,2.221,225.03,225.01,10.90109837]
[1733921726517,2.221,225.03,225.02,4.22624102]
[1733921727243,2.221,225.03,225.01,6.67485735]
[1733921727438,2.221,225.03,225.02,4.22632498]
[1733921729113,2.16,225.05,225.02,4.22632498]
[1733921729314,2.16,225.05,225.01,6.67485735]
[1733921729510,2.16,225.05,225.02,4.22635026]
[1733921729709,2.2207,225.06,225.01,6.67485735]
[1733921729910,2.2207,225.06,225.03,6.67485735]
[1733921730112,2.2207,225.06,225.04,4.22635475]
[1733921730410,2.2207,225.06,225.03,6.67485735]
[1733921730909,2.2208,225.04,225.0,1.3966]
[1733921731217,2.2208,225.04,225.01,4.2258298]
[1733921731417,2.2208,225.04,225.02,4.2258298]
[1733921731618,2.2208,225.04,225.0,8.07145735]
[1733921731827,2.2208,225.04,225.01,4.22587818]
[1733921732016,2.2208,225.04,225.0,8.07145735]
[1733921732017,2.2208,225.04,225.02,4.22587818]
[1733921732216,2.2208,225.04,225.0,8.07145735]
[1733921732516,2.2208,225.04,225.01,4.22609108]
[1733921732717,2.2208,225.04,225.02,4.22609108]
[1733921733015,6.67485735,225.07,224.98,11.59662965]
[1733921733210,6.67485735,225.07,224.99,10.90123641]
[1733921733511,6.67485735,225.07,225.0,4.22637906]
[1733921733673,6.67485735,225.07,225.01,4.22637906]
[1733921733674,2.2209,225.03,225.01,4.22637906]
[1733921733837,4.3809,225.03,224.99,6.67485735]
[1733921734009,4.3809,225.03,225.0,4.22641691]
[1733921734211,4.3809,225.03,225.01,4.22641691]
[1733921734414,4.3809,225.03,224.99,6.67485735]
[1733921734616,4.3809,225.03,225.0,4.22692609]
[1733921734816,4.3809,225.03,225.01,10.90178344]
[1733921735015,4.3809,225.03,225.02,4.2269286]
[1733921735608,2.2209,225.03,225.02,4.2269286]
[1733921736213,2.2209,225.03,224.98,12.09647382]
[1733921736416,2.2209,225.03,225.0,6.17501318]
[1733921736646,2.2209,225.03,225.01,4.22648237]
[1733921736841,2.2209,225.03,225.02,4.22648237]
[1733921737155,2.2209,225.03,225.0,6.17501318]
[1733921737244,2.221,225.02,225.01,4.22625131]
[1733921739119,2.221,225.02,225.01,9.32869046]
[1733921740130,2.221,225.02,225.01,5.10243915]
[1733921740234,2.221,225.02,225.01,9.32738376]
[1733921741027,2.221,225.02,225.01,15.50239694]
[1733921741836,2.221,225.02,225.01,4.22494461]
[1733921742130,2.221,225.02,225.01,9.33511965]
[1733921743039,2.221,225.02,225.01,4.22494461]
[1733921743527,2.16,225.04,224.99,12.84987053]
[1733921743528,2.2212,225.0,224.99,12.84987053]
[1733921743828,2.2212,225.0,224.99,10.90253218]
[1733921744227,2.2212,225.0,224.99,16.01949096]
[1733921745231,2.2212,225.0,224.99,22.19450414]
[1733921746572,2.2212,225.0,224.99,17.96682931]
[1733921746744,2.2212,225.0,224.99,22.19656926]
[1733921746953,2.2212,225.0,224.99,17.96682931]
[1733921747129,2.2212,225.0,224.99,61.25024748]
[1733921752538,2.2212,225.0,224.99,55.0752343]
[1733921753437,2.221,225.02,224.99,182.228649]
[1733921753638,6.67485735,225.1,225.01,56.15242935]
[1733921753838,2.16,225.09,225.04,6.18477416]
[1733921754028,1.3435,225.15,225.06,6.18477416]
[1733921754231,2.16,225.14,225.08,6.67485735]
[1733921754431,2.16,225.13,225.09,4.22974015]
[1733921754634,2.2201,225.11,225.1,4.22974015]
[1733921755645,1.3169,225.23,225.1,4.22974015]
[1733921755646,1.3169,225.23,225.1,10.9045975]
[1733921755840,2.2198,225.14,225.12,6.67485735]
[1733921756142,2.2198,225.14,225.13,4.22974015]
[1733921756455,4.3797,225.15,225.13,4.25865085]
[1733921756764,2.16,225.15,225.14,4.25865085]
[1733921757342,4.3797,225.15,225.14,4.25865085]
[1733921758854,2.2196,225.16,225.14,10.9335082]
[1733921759043,4.3796,225.16,225.15,4.25865085]
[1733921759251,2.6563,225.23,225.15,4.25865085]
[1733921759462,6.67485735,225.21,225.14,6.67485735]
[1733921759770,2.2193,225.19,225.16,6.67485735]
[1733921759954,6.67485735,225.21,225.16,6.67485735]
[1733921760649,2.2195,225.17,225.16,6.67485735]
[1733921760846,2.2195,225.17,225.16,10.92782241]
[1733921761355,2.2195,225.17,225.16,6.67485735]
[1733921761544,2.2195,225.17,225.14,6.67485735]
[1733921761757,2.2195,225.17,225.15,4.25108534]
[1733921762026,6.67485735,225.21,225.14,6.67485735]
[1733921762027,2.2196,225.16,225.14,6.67485735]
[1733921762147,2.16,225.16,225.15,4.25108403]
[1733921762446,2.16,225.16,225.11,6.67485735]
[1733921762655,6.67485735,225.15,225.12,4.24966597]
[1733921762850,6.67485735,225.13,225.06,1.3355]
[1733921763038,6.67485735,225.13,225.07,4.24994678]
[1733921763248,6.67485735,225.13,225.08,4.24994678]
[1733921763542,6.67485735,225.13,225.09,4.24994678]
[1733921763848,6.67485735,225.13,225.05,6.67485735]
[1733921764049,2.2204,225.09,225.06,4.25015679]
[1733921764349,2.16,225.09,225.07,4.25015679]
[1733921764542,2.16,225.09,225.08,4.25015679]
[1733921764745,4.3803,225.09,225.08,4.25015679]
[1733921764984,8.83485735,225.09,225.03,14.31083151]
[1733921765232,8.83485735,225.09,225.04,4.2502939]
[1733921765475,2.2207,225.05,225.03,6.67485735]
[1733921765844,2.2207,225.05,225.04,4.25064435]
[1733921766454,8.89555735,225.05,225.04,4.25064435]
[1733921766649,6.67485735,225.05,224.98,5.42161647]
[1733921766950,2.16,225.04,224.99,4.25109489]
[1733921767152,2.16,225.04,225.0,4.25109489]
[1733921767351,2.16,225.04,225.01,4.25109489]
[1733921767651,2.16,225.04,224.98,5.42161647]
[1733921767861,4.3809,225.04,224.99,6.67485735]
[1733921768054,4.3809,225.04,225.01,6.67485735]
[1733921768749,2.2209,225.03,225.01,6.67485735]
[1733921768964,2.16,225.04,225.01,6.67485735]
[1733921769152,2.16,225.04,224.99,6.67485735]
[1733921769352,2.16,225.04,224.98,5.42161647]
[1733921769550,2.16,225.04,224.98,12.09647382]
[1733921769755,2.16,225.04,224.98,5.42161647]
[1733921769951,2.2212,225.0,224.98,5.42161647]
[1733921770253,2.16,225.04,224.99,6.67485735]
[1733921770468,2.2211,225.01,224.99,6.67485735]
[1733921770844,2.2211,225.01,224.98,5.42161647]
[1733921771048,2.2211,225.01,224.98,12.09647382]
[1733921771252,2.16,225.04,224.98,12.09647382]
[1733921771253,2.2212,225.0,224.98,12.09647382]
[1733921771480,2.16,225.04,224.98,6.67485735]
[1733921772858,2.2213,224.99,224.98,6.67485735]
[1733921773257,2.2214,224.98,224.96,6.18477416]
[1733921773459,2.2214,224.98,224.96,12.85963151]
[1733921774059,2.2214,224.98,224.96,6.67485735]
[1733921774359,2.2214,224.98,224.96,12.85963151]
[1733921774713,2.2214,224.98,224.96,6.67485735]
[1733921774963,4.0379,225.12,224.96,6.67485735]
[1733921774964,5.20237749,225.11,224.96,6.67485735]
[1733921775232,6.67485735,225.07,225.0,6.67485735]
[1733921775353,2.16,225.1,225.02,6.67485735]
[1733921775651,2.16,225.09,225.02,6.67485735]
[1733921776455,2.2207,225.06,225.02,6.67485735]
[1733921776657,2.16,225.09,225.03,4.27428278]
[1733921776854,2.16,225.09,225.04,4.27428278]
[1733921777063,2.2206,225.06,225.05,4.27428278]
[1733921777755,2.2205,225.08,225.05,4.27428278]
[1733921778127,2.16,225.09,225.04,6.67485735]